Cogmind - Beta 14 @@@ ROGUE MODE // 2025.01.15 @ 16:00:33 Player: Anting Result: Destroyed by Y-45 Defender with Beam Rifle Performance ------------- Evolutions (2) 1000 Regions Visited (5) 1000 Robots Destroyed (24) 120 Value Destroyed (543) 543 Prototype IDs (0) 0 Alien Tech Used (0) 0 Bonus (12) 12 TOTAL SCORE: 2675 Bonus ------- Follower Combat Kills 12 Cogmind --------- Core Integrity 0/550 Matter 134/300 Energy 100/100 System Corruption 2% Temperature Cool (9) Movement Treading (170) Location -8/Materials Parts ------- > --- POWER (1) -------- (None) > --- PROPULSION (2) --- Armored Treads > --- UTILITY (6) ------ (None) > --- WEAPON (2) ------- Particle Gun > --- INVENTORY (5) ---- Improved Heat Sink Small Storage Unit Peak State ------------ > --- POWER ------------ Light Ion Engine > --- PROPULSION ------- Armored Treads Armored Treads > --- UTILITY ---------- Improved Propulsion Shielding > --- WEAPON ----------- (None) > --- INVENTORY -------- Improved Heat Sink Small Storage Unit [Rating: 10] Favorites ----------- Power Ion Engine Engine Ion Engine Propulsion Aluminum Leg Treads Light Treads Leg Aluminum Leg Flight Unit Flight Unit Utility Small Storage Unit Storage Small Storage Unit Hackware Hacking Suite Protection Improved Propulsion Shielding Weapon Particle Gun Energy Gun Particle Gun Ballistic Gun Light Assault Rifle Launcher Grenade Launcher Build | -11 -10 -10 -10 -9 -8 ------- Run | Yrd Mat Min Exi Min Mat Slots Evolved 4 | . . . . . 4 Power . | . . . . . . Propulsion . | . . . . . . Utility 4 | . . . . . 4 Weapon . | . . . . . . Parts Attached 26 | 6 . 5 . 1 14 Power 3 | 1 . . . . 2 Engine 3 | 1 . . . . 2 Core . | . . . . . . Reactor . | . . . . . . Propulsion 10 | 2 . 2 . . 6 Treads 5 | 2 . . . . 3 Leg 3 | . . 2 . . 1 Wheel . | . . . . . . Hover . | . . . . . . Flight 2 | . . . . . 2 Utility 4 | 1 . . . . 3 Device . | . . . . . . Storage 1 | 1 . . . . . Processor . | . . . . . . Hackware 1 | . . . . . 1 Protection 2 | . . . . . 2 Artifact . | . . . . . . Weapon 9 | 2 . 3 . 1 3 Energy Gun 5 | . . 2 . . 3 Energy Cannon . | . . . . . . Ballistic Gun 2 | 2 . . . . . Ballistic Cannon . | . . . . . . Launcher 2 | . . 1 . 1 . Special Weapon . | . . . . . . Impact Weapon . | . . . . . . Slashing Weapon . | . . . . . . Piercing Weapon . | . . . . . . Special Melee Weapon . | . . . . . . Unidentified Prototypes . | . . . . . . Parts Lost 17 | . . 5 . 2 10 Power 2 | . . 1 . . 1 Propulsion 6 | . . 2 . 1 3 Utility 3 | . . . . . 3 Weapon 6 | . . 2 . 1 3 Highest Loss Streak 6 | . . 3 . 2 6 To Critical Strikes . | . . . . . . Average Slot Usage (%) 73 | . 85 73 71 68 29 Engine 6 | . 14 5 . . 4 Treads 11 | . 28 6 . . 5 Leg 13 | . . 20 28 26 . Storage 12 | . 14 14 14 14 . Energy Gun 13 | . . 18 28 25 2 Ballistic Gun 11 | . 28 7 . . . Peak Build Rating 10 | 6 7 8 7 7 10 Average Rating 6 | 4 6 6 7 6 5 On Entrance 5 | . 6 7 7 7 4 Naked Turns 14 | . . . . . 14 Heaviest Build 14 | 13 13 14 9 9 8 Greatest Support 40 | 40 40 40 20 20 40 Greatest Overweight (x) 4 | . . 4 . . . Average Overweight (x) . | . . . . . . Largest Inventory Capacity 8 | 8 8 8 8 8 8 Average Capacity 7 | 7 8 8 8 8 5 Most Carried 8 | 5 6 8 8 8 8 Average Carried 6 | 1 4 7 8 8 3 Final Capacity 8 | 8 8 8 8 8 5 Final Carried 8 | 1 6 8 8 8 2 Class Distribution -------------------- 50% | Scavenger-Mutant 49% | Mutant Dominant Class ---------------- Mutant | -10/Materials Scavenger-Mutant | -10/Mines Scavenger-Mutant | -10/Exiles Scavenger-Mutant | -9/Mines Scavenger-Mutant | -8/Materials Resources | -11 -10 -10 -10 -9 -8 ----------- Run | Yrd Mat Min Exi Min Mat Matter Collected 494 | 168 256 70 . . . Remotely . | . . . . . . Salvage Created 741 | . 392 286 . 42 21 Parts 61 | . 40 15 . 1 5 Haulers Intercepted . | . . . . . . Recyclers Shooed . | . . . . . . Parts Field Recycled . | . . . . . . Retrieved Matter . | . . . . . . Parts Self-Destructed . | . . . . . . Prevented . | . . . . . . Kills | -11 -10 -10 -10 -9 -8 ------- Run | Yrd Mat Min Exi Min Mat Combat Hostiles Destroyed 18 | . 11 6 . . 1 Guns 18 | . 11 6 . . 1 Classes Destroyed 7 | . 4 2 . . 1 Tunneler 1 | . . 1 . . . Recycler 1 | . . 1 . . . Operator 2 | . 2 . . . . Watcher 2 | . 2 . . . . Swarmer 7 | . 5 2 . . . Cutter 1 | . . . . . 1 Grunt 10 | . 6 4 . . . Best Kill Streak 4 | . 4 4 . . 1 Combat Bots Only 3 | . 3 2 . . 1 Max Kills in Single Turn 1 | . 1 1 . . 1 Gunslinging . | . . . . . . Exploded . | . . . . . . Melee . | . . . . . . Uniques/NPCs Destroyed . | . . . . . . Combat | -11 -10 -10 -10 -9 -8 -------- Run | Yrd Mat Min Exi Min Mat Hostile Shots Fired 235 | . 57 58 . . 120 Missed 59 | . 15 10 . . 34 Damage Taken 2521 | . 408 571 . 22 1520 Core 726 | . 49 126 . . 551 Absorbed by Shields . | . . . . . . Redirected to Shielding 205 | . . . . . 205 Core Remaining (%) 65 | 100 . . . 30 . Volleys Fired 102 | . 42 43 . 3 14 Largest 2 | . 2 2 . 2 1 Hottest 105 | . 40 105 . 105 65 Shots Fired 164 | . 84 62 . 4 14 Gun 156 | . 84 62 . 2 8 Cannon . | . . . . . . Launcher 8 | . . . . 2 6 Special . | . . . . . . Kinetic 111 | . 84 27 . . . Thermal 45 | . . 35 . 2 8 Explosive 8 | . . . . 2 6 Electromagnetic . | . . . . . . Robot Hit Streak 14 | . 14 10 . 1 4 Robot Miss Streak 3 | . 3 3 . . 2 Penetration Max . | . . . . . . Secondary Targets 1 | . . 1 . . . Max Gunslinging Chain 1 | . . 1 . . . Shots Hit Robots 100 | . 49 41 . 1 9 Core Hits 44 | . 24 14 . 1 5 Critical Kills . | . . . . . . Critical Parts Destroyed . | . . . . . . Critical Strikes 2 | . . 2 . . . Burn 2 | . . 2 . . . Melee Attacks . | . . . . . . Impact . | . . . . . . Slashing . | . . . . . . Piercing . | . . . . . . Sneak Attacks . | . . . . . . Combat Hostiles . | . . . . . . Follow-up Attacks . | . . . . . . Damage Inflicted 1203 | . 535 507 . 10 151 Guns 1107 | . 535 507 . 10 55 Cannons . | . . . . . . Explosions 90 | . . . . . 90 Melee . | . . . . . . Ramming 6 | . . . . . 6 Kinetic 698 | . 535 163 . . . Thermal 409 | . . 344 . 10 55 Explosive 90 | . . . . . 90 Electromagnetic . | . . . . . . Impact . | . . . . . . Slashing . | . . . . . . Piercing . | . . . . . . Highest Corruption 2 | . . . . . 2 Average Corruption 2 | . . . . . 2 Corruption Purged . | . . . . . . Corruption Blocked . | . . . . . . Effects 1 | . . . . . 1 Message Errors 1 | . . . . . 1 Overload Shots . | . . . . . . Overflow Damage 10 | . . . . 10 . Projectiles . | . . . . . . Explosions 10 | . . . . 10 . Melee . | . . . . . . Knockbacks . | . . . . . . Impact . | . . . . . . Kinetic . | . . . . . . Secondary . | . . . . . . Self-Inflicted Damage 25 | . . . . 22 3 Shots 1 | . . . . 1 . Rammed 2 | . . . . . 2 Targets Rammed 2 | . . . . . 2 Kicked . | . . . . . . Crushed . | . . . . . . Highest Temperature 263 | . 18 263 . 30 67 Average Temperature 65 | . 7 84 . 16 27 Received Heat Transfer 990 | . 144 288 . . 558 Siege Activations . | . . . . . . Robots Corrupted . | . . . . . . Combat Hostiles . | . . . . . . Parts Fried . | . . . . . . Impact Corruptions . | . . . . . . Robots Melted . | . . . . . . Combat Hostiles . | . . . . . . Parts Melted 3 | . . 3 . . . Heat Transferred 1088 | . . 939 . 25 124 Parts Sabotaged . | . . . . . . Parts Stolen . | . . . . . . Parts Stripped . | . . . . . . Power Chain Reactions . | . . . . . . Alert | -11 -10 -10 -10 -9 -8 ------- Run | Yrd Mat Min Exi Min Mat Peak Influence 235 | . 192 235 . 5 65 Initial 13 | . . 13 . . 1 Average 52 | . 67 74 . 4 10 Maximum Alert Level 1 | . . 1 . . . Low Security (%) 96 | 100 100 88 . 100 100 Level 1 3 | . . 11 . . . Level 2 . | . . . . . . Level 3 . | . . . . . . Level 4 . | . . . . . . Level 5 . | . . . . . . High Security . | . . . . . . Max Security . | . . . . . . Squads Dispatched 4 | . 2 . . . 2 Investigation . | . . . . . . Extermination . | . . . . . . Reinforcement 4 | . 2 . . . 2 Assault . | . . . . . . Garrison . | . . . . . . Intercept . | . . . . . . Searches Triggered . | . . . . . . Construction Impeded . | . . . . . . Haulers Reinforced . | . . . . . . Active Scanning Responses . | . . . . . . Cargo Convoy Interrupts . | . . . . . . Stealth | -11 -10 -10 -10 -9 -8 --------- Run | Yrd Mat Min Exi Min Mat Distress Signals 1 | . 1 . . . . Communications Jammed . | . . . . . . Distress Signals . | . . . . . . Times Spotted 40 | . 21 12 . . 7 Peak Tracking Total 6 | . 3 3 . . 6 Tactical Retreats 6 | . 2 4 . . . Traps | -11 -10 -10 -10 -9 -8 ------- Run | Yrd Mat Min Exi Min Mat Traps Triggered . | . . . . . . Indirectly . | . . . . . . Trap Hack Attempts . | . . . . . . Triggered . | . . . . . . Disarmed . | . . . . . . Reprogrammed . | . . . . . . Reused . | . . . . . . Traps Extracted . | . . . . . . Installed . | . . . . . . Triggered . | . . . . . . Machines | -11 -10 -10 -10 -9 -8 ---------- Run | Yrd Mat Min Exi Min Mat Machines Disabled . | . . . . . . Max in Single Turn . | . . . . . . Machines Repaired . | . . . . . . Machines Dismantled . | . . . . . . Machines Sabotaged . | . . . . . . Overloaded Fab Kills . | . . . . . . Hacking | -11 -10 -10 -10 -9 -8 --------- Run | Yrd Mat Min Exi Min Mat Machines Accessed 9 | . 3 . 4 . 2 Terminals 5 | . 3 . . . 2 Fabricators . | . . . . . . Repair Stations . | . . . . . . Recycling Units . | . . . . . . Scanalyzers . | . . . . . . Garrison Access . | . . . . . . Total Hacks 17 | . 9 . 4 . 4 Successful 12 | . 6 . 4 . 2 Failed 5 | . 3 . . . 2 Catastrophic 3 | . 2 . . . 1 Database Lockouts . | . . . . . . Manual 12 | . 8 . . . 4 Terminals 13 | . 9 . . . 4 Fabricators . | . . . . . . Repair Stations . | . . . . . . Recycling Units . | . . . . . . Scanalyzers . | . . . . . . Garrison Access . | . . . . . . Terminal Hacks 7 | . 3 . 4 . . Record 4 | . . . 4 . . Level Access Points 1 | . 1 . . . . Branch Access Points 1 | . 1 . . . . Alert Level 1 | . 1 . . . . Fabricator Hacks . | . . . . . . Repair Station Hacks . | . . . . . . Recycling Unit Hacks . | . . . . . . Scanalyzer . | . . . . . . Garrison Access Hacks . | . . . . . . Unauthorized Hacks 5 | . 3 . . . 2 Terminals 5 | . 3 . . . 2 Botnet 5 | . 3 . . . 2 Fabricators . | . . . . . . Repair Stations . | . . . . . . Recycling Units . | . . . . . . Scanalyzers . | . . . . . . Garrison Access . | . . . . . . Data Cores Recovered . | . . . . . . Used . | . . . . . . Hacking Detections 5 | . 3 . . . 2 Full Trace Events . | . . . . . . Feedback Events . | . . . . . . Feedback Blocked . | . . . . . . Robot Schematics Acquired . | . . . . . . Robots Built . | . . . . . . Authchips . | . . . . . . Time . | . . . . . . Total Robot Build Rating . | . . . . . . Part Schematics Acquired . | . . . . . . Parts Built . | . . . . . . Authchips . | . . . . . . Time . | . . . . . . Total Part Build Rating . | . . . . . . Parts Repaired . | . . . . . . Time . | . . . . . . Parts Recycled . | . . . . . . Recycled Matter . | . . . . . . Retrieved Matter . | . . . . . . Retrieved Components . | . . . . . . Parts Scanalyzed . | . . . . . . Part Schematics Acquired . | . . . . . . Parts Damaged . | . . . . . . Bothacking | -11 -10 -10 -10 -9 -8 ------------ Run | Yrd Mat Min Exi Min Mat Used RIF Installer . | . . . . . . Robots Hacked . | . . . . . . Non-combat . | . . . . . . Combat . | . . . . . . Robot Hacks Applied . | . . . . . . Relay Couplers Released . | . . . . . . Fabnet Peak Effective % . | . . . . . . Robots Rewired . | . . . . . . Allies Hacked . | . . . . . . Hacks Repelled . | . . . . . . Allies | -11 -10 -10 -10 -9 -8 -------- Run | Yrd Mat Min Exi Min Mat Total Allies 3 | . . . . 3 . Largest Group 3 | . . . . 3 3 Highest-Rated Group 40 | . . . . 40 40 Highest-Rated Ally 16 | . . . . 16 16 Total Orders . | . . . . . . Ally Attacks 14 | . . . . . 14 Total Damage 183 | . . . . . 183 Kills 3 | . . . . . 3 Allies Corrupted . | . . . . . . Allies Melted . | . . . . . . Intel | -11 -10 -10 -10 -9 -8 ------- Run | Yrd Mat Min Exi Min Mat Robot Analysis Total . | . . . . . . Derelict Logs Recovered 1 | . . . . 1 . Drone Launches . | . . . . . . Drone Recoveries . | . . . . . . Exploration | -11 -10 -10 -10 -9 -8 ------------- Run | Yrd Mat Min Exi Min Mat Turns Passed 2390 | 91 827 531 505 247 189 Spaces Moved 1703 | 58 429 323 421 199 273 Core 59 | 12 . 3 . . 44 Treads 550 | 46 429 54 . . 21 Legs 890 | . . 266 421 199 4 Wheels . | . . . . . . Hover . | . . . . . . Flight 204 | . . . . . 204 Fastest Speed 37 | 50 160 120 120 120 37 Average Speed 120 | 137 160 127 120 120 50 Slowest Speed 250 | 160 160 250 120 120 170 Overloaded Moves . | . . . . . . Propulsion Burnouts . | . . . . . . Robots Hopped . | . . . . . . Cave-ins Triggered . | . . . . . . Exploration Rate (%) 44 | 4 54 57 91 42 16 Regions Visited 5 Branch Regions 3 Pre-discovered Areas 1 | . . . . 1 . Known Exits Taken 1 | . 1 . . . . Unknown Exits Taken 4 | 1 . 1 1 1 . Scrap Searched 2 | . . 1 . 1 . Spaces Dug 10 | . . . . 10 . Terrain Destroyed 47 | . . . . 17 30 Melee . | . . . . . . Projectile . | . . . . . . AOE 47 | . . . . 17 30 Terrain Rammed . | . . . . . . Walls Destroyed . | . . . . . . Machines Disabled . | . . . . . . Actions | -11 -10 -10 -10 -9 -8 --------- Run | Yrd Mat Min Exi Min Mat Total 1880 | 70 494 383 420 202 311 Wait 26 | . 19 7 . . . Move 1698 | 57 428 322 420 198 273 Hop . | . . . . . . Pick Up 24 | 7 5 6 . . 6 Fast Attach 1 | . . . . . 1 Attach 23 | 6 . 4 . . 13 Detach 1 | . . . . . 1 Swap 2 | . . 1 . 1 . Drop 1 | . . . . . 1 Fire 102 | . 42 43 . 3 14 Melee . | . . . . . . Ram 2 | . . . . . 2 Kick . | . . . . . . Crush . | . . . . . . Escape Stasis . | . . . . . . Rewire . | . . . . . . Trap . | . . . . . . Miscellaneous . | . . . . . . Route ------- -11/Scrapyard -10/Materials (discovered 4 exits: Mat x3 / *Min) -10/Mines (discovered 2 exits: *Mat / *Exi) -10/Exiles -9/Mines (discovered 2 exits: *Mat x2) -8/Materials History --------- Turn | Location | Event 4 | -11/Scrapyard | Discovered new exit (range 15) 92 | -11/Scrapyard | Entered Materials 302 | -10/Materials | Build established: Mutant 769 | -10/Materials | Discovered new exit (range 6) 794 | -10/Materials | Identified exit to Mines 842 | -10/Materials | Identified exit to Materials 919 | -10/Materials | Entered Mines 1054 | -10/Mines | Core integrity fell below 50% 1079 | -10/Mines | Lost 3 parts (2n1w) 1182 | -10/Mines | Discovered exit to Materials (range 10) 1386 | -10/Mines | YI-UF0 nonchalantly dropped a Grenade Launcher on the ground 1425 | -10/Mines | Build established: Scavenger-Mutant 1444 | -10/Mines | Deemed a non-threat by the Exiles lab entrance 1444 | -10/Mines | Discovered new exit (range 5) 1450 | -10/Mines | Entered Exiles 1450 | -10/Exiles | Found Exiles lab abandoned 1940 | -10/Exiles | Discovered new exit (range 12) 1955 | -10/Exiles | Entered Mines 1990 | -9/Mines | Discovered new exit (range 7) 2014 | -9/Mines | Met a Derelict bent on vengeance 2140 | -9/Mines | Discovered new exit (range 10) 2156 | -9/Mines | Learned location of Zion (-6) 2162 | -9/Mines | Assembled infested the area 2199 | -9/Mines | Assisted by bots powering up and referring to "LRC-V3" 2202 | -9/Mines | Entered Materials 2202 | -8/Materials | Accompanied by 3 allies 2202 | -8/Materials | Evolved 4 slots: Utility x4 2340 | -8/Materials | Lost 6 parts (1p2n1u2w) 2364 | -8/Materials | Lost 3 allies 2368 | -8/Materials | Core integrity fell below 50% 2377 | -8/Materials | Core integrity fell below 20% 2391 | -8/Materials | Destroyed by Y-45 Defender with Beam Rifle Last Messages --------------- K-01 Serf collects debris. YQ<10ETSAHXF2PH&F VMGVIP K-01 Serf cleans the Scanalyzer. M-13 Machinist repairs Reaction Control System. Imp. Propulsion Shielding destroyed. K-01 Serf collects debris. M-13 Machinist repairs Surge Thruster. Acquired Particle Gun. K-01 Serf cleans the Scanalyzer. M-13 Machinist repairs Surge Thruster. Critical hit (Burn: +37). K-01 Serf collects debris. C-17 Slicer destroyed. K-01 Serf collects debris. K-01 Serf destroyed. K-01 Serf collects debris. Acquired Arm. Treads. K-01 Serf collects debris. Arm. Treads destroyed. K-01 Serf collects debris. Map ----- +----------------------------------------------------+ | ???????????# """ # """ #???????????????????? | | ???????????# """ + """ #???????????????????? | | ???????????# """ # """ #???????????????????? | | ???????????# # #???????????????????? | | ???????????# # #???????????????????? | | ???????????#########+##### #???????????????????? | | ???????????????# # #???????????????????? | | ???????????????# """ # #???????????????????? | | ???????????????# """ # #???????????????????? | | ???????????????# """ # #???????????????????? | | ???????????????#""" # #???????????????????? | | ???????????????#"R + #???????????????????? | | ???????????????#""" ## #########???????????? | | ???????????????# ## ## "???????????? | | ???????????????############ + #???????????? | | ??????????????????????????##### !! #???????????? | | ??????????????????????????????# !! #???????????? | | ?????????????????##???????????# #???????????? | | ????????????????? +???????????# """ #???????????? | | ????????????????? #???????????# """ #???????????? | | ????????????????# #???????###?# """ #???????????? | | ????????????????# #?####### ### #???????????? | | ????????????????# #?# g!## """ #???????????? | | ???????????????## #?# "S gY/ ## """ #???????????? | | ???????????????+ #?# """ m%*## """% #???????????? | | ??# ???????????# #?# ""@==g## %#???????????? | | ??# ########## ###=!% =k=#####"+##???????????? | | ??# # %"""%%=+ #????????????? | | ??# + """=!%##### +???????????? | | # """ #???# #???????????? | | ????+######## ### ## !#??? ??????????? | | ??????????# #####+#####??? ????????? | | ??????????#="" #?# #????# ! #+##???????? | | ?????????## "T ### ###?? ??????????? | | ?????????# "" T ?????????? | | ?????????# ##### #### #+#????????? | | ?????????# #???# #??# ??????????? | | ?????????# # ## #???#######??## # ??????????? | | ?????????#########?????????????####### ?????????? | | ?????????????????????????????????????? ?????????? | | ???????????????????????????????????????? ????????? | | ?????????????????????????????????????????????????? | | | | | | | | | | | | | | | | | +----------------------------------------------------+ Best States ------------- Heat Dissipation 31 Energy Generation 10 Energy Capacity 250 Matter Stores 300 Matter Capacity 300 Sight Range 16 Terrain Scan Density 10 Propulsion Shielding 66 Evasion (%) 62 Recoil Reduction 2 Offensive Hacking 10 Item Schematics ----------------- None Robot Schematics ------------------ None Fabricated ------------ Nothing Alien Tech Used ----------------- None Achievements -------------- None Challenges ------------ None Game ------ Seed IonicSchematicSuperbattery Manual? 0 Play Time 00:21:39 Cumulative 5.7 hours Start 2025.01.15 @ 13:55:57 End 2025.01.15 @ 16:00:33 Sessions 5 Manual Loads 0 Difficulty Rogue Special Mode None Game No. 13 Rogue 13 Adventurer 0 Explorer 0 Win Type - Total 0 Types 0/0/0/0/0/0/0/0/0 Lore% 10 Gallery% 9 Achievement% 13 Wizard Run 0 Options --------- Layout 1 ASCII 0 Keyboard 0 Movement Mouse Keybinds 0 Fullscreen 2 Font 32/SmallcapsGlow Map View 50x35 Zoom Use 0% Tactical HUD 0 Map Filters NONE Filters NONE Steam 1 RUN: 93122506-750c-4ca4-8c4f-dc6650a8e25a